Body,Body Name,Date,TransNo,Amount � (Excl VAT),Supplier name,Description,Expense Area,Expense Type,Expense Code,
http://opendatacommunities.org/id/london-borough-council/sutton,London Borough of Sutton,08/10/2019,1284043,"1,200.00 ", WWW.LOCAL.GOV.UK,CLLRS. LGA NATIONAL CONFERENCE FOR CHILDREN & ADULT SERVICES,Peoples Services Directorate,Conferences - Fees,A525,
http://opendatacommunities.org/id/london-borough-council/sutton,London Borough of Sutton,08/10/2019,1284043,540.33 , HILTON,CLLR. ACCOMMODATION FOR LGA NATIONAL CONFERENCE C&A,Peoples Services Directorate,Conferences - Fees,A525,
http://opendatacommunities.org/id/london-borough-council/sutton,London Borough of Sutton,08/10/2019,1284043,540.33 , HILTON,HOTEL ACCOMMODATION FOR CLLR TO ATTENDING LGA NATIONAL CONFERENCE C&A,Peoples Services Directorate,Conferences - Fees,A525,
http://opendatacommunities.org/id/london-borough-council/sutton,London Borough of Sutton,08/10/2019,1284043,180.11 , HILTON,HOTEL ACCOMMODATION FOR CLLR. FOR LGA NATIONAL CONFERENCE C&A,Peoples Services Directorate,Conferences - Fees,A525,
http://opendatacommunities.org/id/london-borough-council/sutton,London Borough of Sutton,17/10/2019,1284043,14.99 , AMZNMKTPLACE,TOYS/EQUIPMENT,Peoples Services Directorate,Education Equipment,F009,
http://opendatacommunities.org/id/london-borough-council/sutton,London Borough of Sutton,10/10/2019,1284043,47.87 , WWW.IKEA.COM,TOYS/EQUIPMENT,Peoples Services Directorate,Education Equipment,F009,
http://opendatacommunities.org/id/london-borough-council/sutton,London Borough of Sutton,04/10/2019,1284043,38.95 , ROMPA LTD,TOY REPAIR,Peoples Services Directorate,Education Equipment,F009,
http://opendatacommunities.org/id/london-borough-council/sutton,London Borough of Sutton,03/10/2019,1284043,54.93 , AMZNMKTPLACE,TOYS/EQUIPMENT,Peoples Services Directorate,Education Equipment,F009,
http://opendatacommunities.org/id/london-borough-council/sutton,London Borough of Sutton,03/10/2019,1284043,9.74 , AMZNMKTPLACE,TOYS/EQUIPMENT,Peoples Services Directorate,Education Equipment,F009,
http://opendatacommunities.org/id/london-borough-council/sutton,London Borough of Sutton,02/10/2019,1284043,4.79 , AMAZON.CO.UK MO2HM3414,TOYS/EQUIPMENT,Peoples Services Directorate,Education Equipment,F009,
http://opendatacommunities.org/id/london-borough-council/sutton,London Borough of Sutton,14/10/2019,1284043,79.99 , W M MORRISONS.COM,GROCERIES,Peoples Services Directorate,Provisions - General,F150,
http://opendatacommunities.org/id/london-borough-council/sutton,London Borough of Sutton,14/10/2019,1284043,26.55 , SAINSBURYS SACAT 2006,GROCERIES,Peoples Services Directorate,Refreshments,F155,
http://opendatacommunities.org/id/london-borough-council/sutton,London Borough of Sutton,06/10/2019,1284043,64.60 , W M MORRISONS.COM,GROCERIES,Peoples Services Directorate,Refreshments,F155,
http://opendatacommunities.org/id/london-borough-council/sutton,London Borough of Sutton,30/09/2019,1284043,6.60 , ASDA SUPERSTORE,GROCERIES,Peoples Services Directorate,Refreshments,F155,
http://opendatacommunities.org/id/london-borough-council/sutton,London Borough of Sutton,29/09/2019,1284043,47.34 , W M MORRISONS.COM,GROCERIES,Peoples Services Directorate,Refreshments,F155,
http://opendatacommunities.org/id/london-borough-council/sutton,London Borough of Sutton,17/10/2019,1284043,16.67 , OYSTER AUTO-TOP UP,TRAVEL,Peoples Services Directorate,Travelling and Subsistence Allowances,A530,
http://opendatacommunities.org/id/london-borough-council/sutton,London Borough of Sutton,17/10/2019,1284043,95.60 , WWW.EXTREME.BETTER.ORG,CONTACT ACTIVITY,Peoples Services Directorate,Personal Requisites,F106,
http://opendatacommunities.org/id/london-borough-council/sutton,London Borough of Sutton,17/10/2019,1284043,39.80 , WWW.EXTREME.BETTER.ORG,CONTACT ACTIVITY,Peoples Services Directorate,Personal Requisites,F106,
http://opendatacommunities.org/id/london-borough-council/sutton,London Borough of Sutton,17/10/2019,1284043,95.60 , WWW.EXTREME.BETTER.ORG,CONTACT ACTIVITY,Peoples Services Directorate,Personal Requisites,F106,
http://opendatacommunities.org/id/london-borough-council/sutton,London Borough of Sutton,10/10/2019,1284043,40.00 , OYSTER AUTO-TOP UP,OYSTER AUTO-TOP UP,Peoples Services Directorate,Staff Travelling Expenses,E130,
http://opendatacommunities.org/id/london-borough-council/sutton,London Borough of Sutton,07/10/2019,1284043,18.06 , AMAZON.CO.UK MO31Q5NG4,A$ RING BINDERS,Peoples Services Directorate,Stationery,F220,
http://opendatacommunities.org/id/london-borough-council/sutton,London Borough of Sutton,26/09/2019,1284043,500.00 , LOYD 49-53 HIGH ST,CASH FOR REFUNDS TO LEARNERS PAYING BY CASH,Peoples Services Directorate,General Office Expenses,F235,
http://opendatacommunities.org/id/london-borough-council/sutton,London Borough of Sutton,27/09/2019,1284043,12.50 ,,CASH WITHDRAWAL CHARGE,Peoples Services Directorate,Fees - Other,F299,
http://opendatacommunities.org/id/london-borough-council/sutton,London Borough of Sutton,25/10/2019,1284043,2.53 ,,ONLINE TRAINING,Peoples Services Directorate,Training - Course Fees,A520,
http://opendatacommunities.org/id/london-borough-council/sutton,London Borough of Sutton,23/10/2019,1284043,118.00 , CBT NUGGETS LLC,SPLIT - IT_PREMIUM (128.43%),Peoples Services Directorate,Training - Course Fees,A520,
http://opendatacommunities.org/id/london-borough-council/sutton,London Borough of Sutton,23/10/2019,1284043,(26.12), CBT NUGGETS LLC,BALANCING ENTRY AMOUNT (-85.29%),Peoples Services Directorate,Training - Course Fees,A520,
http://opendatacommunities.org/id/london-borough-council/sutton,London Borough of Sutton,30/09/2019,1284043,61.59 , MAILCHIMP    MONTHLY,MAILCHIMP MONTHLY SUBSCRIPTION CHARGE,Peoples Services Directorate,Advertising/Publicity (non Staff),F240,
http://opendatacommunities.org/id/london-borough-council/sutton,London Borough of Sutton,22/10/2019,1284043,7.54 , WM MORRISONS STORE,MORRISONS - REFRESHMENTS COMMUNITY LEARNING EVENT,Peoples Services Directorate,Advertising/Publicity (non Staff),F240,
http://opendatacommunities.org/id/london-borough-council/sutton,London Borough of Sutton,21/10/2019,1284043,110.62 , BIGARTANDBANNERS,WTH BANNER OCT19,Peoples Services Directorate,Advertising/Publicity (non Staff),F240,
http://opendatacommunities.org/id/london-borough-council/sutton,London Borough of Sutton,15/10/2019,1284043,55.96 , WATER SOLUTIONS GB LTD,URINAL CLEANER,Peoples Services Directorate,General Maintenance,D500,
http://opendatacommunities.org/id/london-borough-council/sutton,London Borough of Sutton,14/10/2019,1284043,107.50 , WWW.THERMOMETERSDIRECT,LEGIONNAIRES THERMOMETER KIT CALIBRATED,Peoples Services Directorate,Equipment including Meters,D520,
http://opendatacommunities.org/id/london-borough-council/sutton,London Borough of Sutton,01/10/2019,1284043,155.49 , WWW.GURUPEOPLELTD.COM,DISPLAY BOARDS FOR WTH ORDERED ON BEHALF OF LN,Peoples Services Directorate,Furniture - Purchase,F080,
http://opendatacommunities.org/id/london-borough-council/sutton,London Borough of Sutton,10/10/2019,1284043,153.97 , WARM GLASS LTD,GLASS SUPPLIES,Peoples Services Directorate,Education Equipment,F009,
http://opendatacommunities.org/id/london-borough-council/sutton,London Borough of Sutton,09/10/2019,1284043,(51.96), DIRECTSPORTS-ESHOP,SHUTTLECOCKS ORDER NOT PROVIDED,Peoples Services Directorate,Education Equipment,F009,
http://opendatacommunities.org/id/london-borough-council/sutton,London Borough of Sutton,02/10/2019,1284043,17.90 , MDP SUPPLIES,ETCHING CREAM,Peoples Services Directorate,Education Equipment,F009,
http://opendatacommunities.org/id/london-borough-council/sutton,London Borough of Sutton,30/09/2019,1284043,202.01 , INTAGLIO PRINTMAKER,CALLIGO ETCHING AND RELIEF INKS,Peoples Services Directorate,Education Equipment,F009,
http://opendatacommunities.org/id/london-borough-council/sutton,London Borough of Sutton,18/10/2019,1284043,11.00 , MELBOURNE NURSERY,"C&G L3 CUPBOARD STOCK 6.50, FRESH MATERIALS 4.50",Peoples Services Directorate,Education Equipment,F009,
http://opendatacommunities.org/id/london-borough-council/sutton,London Borough of Sutton,18/10/2019,1284043,6.80 , MELBOURNE NURSERY,C&G L3 FRESH MATERIALS,Peoples Services Directorate,Education Equipment,F009,
http://opendatacommunities.org/id/london-borough-council/sutton,London Borough of Sutton,17/10/2019,1284043,1.68 , TESCO STORE 3066,C&G L3 FRESH MATERIALS,Peoples Services Directorate,Education Equipment,F009,
http://opendatacommunities.org/id/london-borough-council/sutton,London Borough of Sutton,10/10/2019,1284043,29.05 , MELBOURNE NURSERY,C&G L3 CUPBOARD STOCK,Peoples Services Directorate,Education Equipment,F009,
http://opendatacommunities.org/id/london-borough-council/sutton,London Borough of Sutton,03/10/2019,1284043,9.00 , THE FLOWER POCKET,FRESH MATERIALS 03/10/19,Peoples Services Directorate,Education Equipment,F009,
http://opendatacommunities.org/id/london-borough-council/sutton,London Borough of Sutton,30/09/2019,1284043,4.49 , WH SMITH,C & G L2 SKETCH PAD,Peoples Services Directorate,Education Equipment,F009,
http://opendatacommunities.org/id/london-borough-council/sutton,London Borough of Sutton,29/09/2019,1284043,12.05 , MELBOURNE NURSERY,FRESH DEMO MATERIALS C&G L2 FLORISTRY,Peoples Services Directorate,Education Equipment,F009,
http://opendatacommunities.org/id/london-borough-council/sutton,London Borough of Sutton,26/09/2019,1284043,8.50 , SAINSBURYS SACAT 0023,FRESH DEMO MATERIALS C&G L3 FLORISTRY,Peoples Services Directorate,Education Equipment,F009,
http://opendatacommunities.org/id/london-borough-council/sutton,London Borough of Sutton,09/10/2019,1284043,2.50 , TESCO STORES 5511,COOKERY MATERIALS,Peoples Services Directorate,Education Equipment,F009,
http://opendatacommunities.org/id/london-borough-council/sutton,London Borough of Sutton,04/10/2019,1284043,261.98 , I.S SUNDRIES LTD,COURSE MATERIALS,Peoples Services Directorate,Education Equipment,F009,
http://opendatacommunities.org/id/london-borough-council/sutton,London Borough of Sutton,21/10/2019,1284043,46.63 , AMT SPORTS LIMITED,SHUTTLECOCKS,Peoples Services Directorate,Education Equipment,F009,
http://opendatacommunities.org/id/london-borough-council/sutton,London Borough of Sutton,24/10/2019,1284043,22.49 , www.instantprint.c,instantprint flyers journalism rl,Peoples Services Directorate,Advertising/Publicity (non Staff),F240,
http://opendatacommunities.org/id/london-borough-council/sutton,London Borough of Sutton,22/10/2019,1284043,125.86 , PAYPAL  EBAY ANTHONYGI,BEAUTY THERAPY VRQ L2 LOGBOK C&G X14,Peoples Services Directorate,Education Equipment,F009,
http://opendatacommunities.org/id/london-borough-council/sutton,London Borough of Sutton,15/10/2019,1284043,3.90 , WILKO RETAIL LIMITED,COOKERY MATERIALS,Peoples Services Directorate,Education Equipment,F009,
http://opendatacommunities.org/id/london-borough-council/sutton,London Borough of Sutton,14/10/2019,1284043,28.80 , SAINSBURYS 2006,COOKERY MATERIALS,Peoples Services Directorate,Education Equipment,F009,
http://opendatacommunities.org/id/london-borough-council/sutton,London Borough of Sutton,09/10/2019,1284043,4.94 , LIDL GB LONDON,COOKERY MATERIALS,Peoples Services Directorate,Education Equipment,F009,
http://opendatacommunities.org/id/london-borough-council/sutton,London Borough of Sutton,08/10/2019,1284043,6.90 , WILKO RETAIL LIMITED,COOKERY MATERIALS,Peoples Services Directorate,Education Equipment,F009,
http://opendatacommunities.org/id/london-borough-council/sutton,London Borough of Sutton,07/10/2019,1284043,18.61 , LIDL GB LONDON,COOKERY MATERIALS,Peoples Services Directorate,Education Equipment,F009,
http://opendatacommunities.org/id/london-borough-council/sutton,London Borough of Sutton,01/10/2019,1284043,3.40 , WILKO RETAIL LIMIT,COOKERY MATERIALS,Peoples Services Directorate,Education Equipment,F009,
http://opendatacommunities.org/id/london-borough-council/sutton,London Borough of Sutton,30/09/2019,1284043,20.47 , LIDL GB LONDON,COOKERY MATERIALS,Peoples Services Directorate,Education Equipment,F009,
http://opendatacommunities.org/id/london-borough-council/sutton,London Borough of Sutton,03/10/2019,1284043,16.67 , OYSTER AUTO-TOP UP,TRAVEL,Peoples Services Directorate,Travelling and Subsistence Allowances,A530,
http://opendatacommunities.org/id/london-borough-council/sutton,London Borough of Sutton,26/10/2019,1284043,20.00 , OYSTER AUTO-TOP UP,20.00 - A530 0301 9999 - OYSTER TOP UP,Peoples Services Directorate,Travelling and Subsistence Allowances,A530,
http://opendatacommunities.org/id/london-borough-council/sutton,London Borough of Sutton,26/10/2019,1284043,20.00 , OYSTER AUTO-TOP UP,20.00 - A530 0301 9999 -,Peoples Services Directorate,Travelling and Subsistence Allowances,A530,
http://opendatacommunities.org/id/london-borough-council/sutton,London Borough of Sutton,23/10/2019,1284043,20.00 , OYSTER AUTO-TOP UP,20.00 - A530 0301 9999 - OYSTER TOP,Peoples Services Directorate,Travelling and Subsistence Allowances,A530,
http://opendatacommunities.org/id/london-borough-council/sutton,London Borough of Sutton,06/10/2019,1284043,20.00 , OYSTER AUTO-TOP UP,20.00 - A530 0301 9999 - OYSTER TOP UP,Peoples Services Directorate,Travelling and Subsistence Allowances,A530,
http://opendatacommunities.org/id/london-borough-council/sutton,London Borough of Sutton,05/10/2019,1284043,20.00 , OYSTER AUTO-TOP UP,20.00 - A530 0301 9999 - OYSTER TOP UP,Peoples Services Directorate,Travelling and Subsistence Allowances,A530,
http://opendatacommunities.org/id/london-borough-council/sutton,London Borough of Sutton,04/10/2019,1284043,20.00 , OYSTER AUTO-TOP UP,20.00 - A530 0301 9999 - OYSTER TOP UP,Peoples Services Directorate,Travelling and Subsistence Allowances,A530,
http://opendatacommunities.org/id/london-borough-council/sutton,London Borough of Sutton,04/10/2019,1284043,20.00 , OYSTER AUTO-TOP UP,20.00 - A530 0301 9999 - OYSTER TOP UP,Peoples Services Directorate,Travelling and Subsistence Allowances,A530,
http://opendatacommunities.org/id/london-borough-council/sutton,London Borough of Sutton,03/10/2019,1284043,20.00 , OYSTER AUTO-TOP UP,20.00 - A530 0301 9999 - OYSTER TOP UP 5,Peoples Services Directorate,Travelling and Subsistence Allowances,A530,
http://opendatacommunities.org/id/london-borough-council/sutton,London Borough of Sutton,27/09/2019,1284043,20.00 , OYSTER AUTO-TOP UP,COOKIE CONSENT20.00 AUTO TOP UP - A530 0301 9999,Peoples Services Directorate,Travelling and Subsistence Allowances,A530,
http://opendatacommunities.org/id/london-borough-council/sutton,London Borough of Sutton,26/09/2019,1284043,20.00 , OYSTER AUTO-TOP UP,20.00 AUTO TOP UP - A530 0301 9999 -,Peoples Services Directorate,Travelling and Subsistence Allowances,A530,
http://opendatacommunities.org/id/london-borough-council/sutton,London Borough of Sutton,01/10/2019,1284043,20.00 , OYSTER AUTO-TOP UP,20.00 - A530 0301 9999 - OYSTER TOP UP,Peoples Services Directorate,Recruitment Expenses,A531,
http://opendatacommunities.org/id/london-borough-council/sutton,London Borough of Sutton,22/10/2019,1284043,"1,091.30 ", TRAVELODGE,1091.30 - H202 0310 9999 - TRAVELODGE MORDEN .PNG,Peoples Services Directorate,Accommodation - Bed and Breakfast,H202,
http://opendatacommunities.org/id/london-borough-council/sutton,London Borough of Sutton,25/10/2019,1284043,7.46 , CAFFE NERO SUTTON CARS,JM ACT,Peoples Services Directorate,Personal Requisites,F106,
http://opendatacommunities.org/id/london-borough-council/sutton,London Borough of Sutton,22/10/2019,1284043,38.00 , LINKWAY CARS,TAXI KP,Peoples Services Directorate,Personal Requisites,F106,
http://opendatacommunities.org/id/london-borough-council/sutton,London Borough of Sutton,21/10/2019,1284043,36.00 , ARGOS SELLY OAK,MA SET UP,Peoples Services Directorate,Personal Requisites,F106,
http://opendatacommunities.org/id/london-borough-council/sutton,London Borough of Sutton,21/10/2019,1284043,21.64 , LIDL GB LONDON,LC GROCERIES,Peoples Services Directorate,Personal Requisites,F106,
http://opendatacommunities.org/id/london-borough-council/sutton,London Borough of Sutton,18/10/2019,1284043,18.19 , PPOINT_ BOTTLE & BASKE,RA GROCERIES,Peoples Services Directorate,Personal Requisites,F106,
http://opendatacommunities.org/id/london-borough-council/sutton,London Borough of Sutton,18/10/2019,1284043,19.75 , NANDOS SUTTON,RA ACTIVITY,Peoples Services Directorate,Personal Requisites,F106,
http://opendatacommunities.org/id/london-borough-council/sutton,London Borough of Sutton,17/10/2019,1284043,38.00 , LINKWAY CARS,TAXI KP AND BABY,Peoples Services Directorate,Personal Requisites,F106,
http://opendatacommunities.org/id/london-borough-council/sutton,London Borough of Sutton,17/10/2019,1284043,4.66 , SUBWAY,MA ACTIVITY,Peoples Services Directorate,Personal Requisites,F106,
http://opendatacommunities.org/id/london-borough-council/sutton,London Borough of Sutton,15/10/2019,1284043,12.30 , FEEDWELL CAFE,MA GROCERIES,Peoples Services Directorate,Personal Requisites,F106,
http://opendatacommunities.org/id/london-borough-council/sutton,London Borough of Sutton,10/10/2019,1284043,33.74 , LIDL GB LONDON,LC GROCERIES,Peoples Services Directorate,Personal Requisites,F106,
http://opendatacommunities.org/id/london-borough-council/sutton,London Borough of Sutton,09/10/2019,1284043,18.19 , DAY 1,KP GROC,Peoples Services Directorate,Personal Requisites,F106,
http://opendatacommunities.org/id/london-borough-council/sutton,London Borough of Sutton,09/10/2019,1284043,49.27 , ASDA STORES,KP GROCERIES FC,Peoples Services Directorate,Personal Requisites,F106,
http://opendatacommunities.org/id/london-borough-council/sutton,London Borough of Sutton,09/10/2019,1284043,9.50 , PP SONIADOR CAFE,KP COURT ACT,Peoples Services Directorate,Personal Requisites,F106,
http://opendatacommunities.org/id/london-borough-council/sutton,London Borough of Sutton,09/10/2019,1284043,4.68 , KFC,KP ACT,Peoples Services Directorate,Personal Requisites,F106,
http://opendatacommunities.org/id/london-borough-council/sutton,London Borough of Sutton,08/10/2019,1284043,7.42 , MCDONALDS,KP ACT,Peoples Services Directorate,Personal Requisites,F106,
http://opendatacommunities.org/id/london-borough-council/sutton,London Borough of Sutton,06/10/2019,1284043,18.19 , PPOINT_ MICHAEL'S STOR,JC GROCERIES,Peoples Services Directorate,Personal Requisites,F106,
http://opendatacommunities.org/id/london-borough-council/sutton,London Borough of Sutton,06/10/2019,1284043,19.06 , LIDL GB LONDON,LIFE SKILLS,Peoples Services Directorate,Personal Requisites,F106,
http://opendatacommunities.org/id/london-borough-council/sutton,London Borough of Sutton,05/10/2019,1284043,15.00 , SAINSBURYS SACAT 2006,RA CELE SUCCESS THANK YOU,Peoples Services Directorate,Personal Requisites,F106,
http://opendatacommunities.org/id/london-borough-council/sutton,London Borough of Sutton,03/10/2019,1284043,5.09 , MCDONALDS911,KP ACT,Peoples Services Directorate,Personal Requisites,F106,
http://opendatacommunities.org/id/london-borough-council/sutton,London Borough of Sutton,27/09/2019,1284043,14.75 , THE POST OFFICE,KB POST PRISON,Peoples Services Directorate,Personal Requisites,F106,
http://opendatacommunities.org/id/london-borough-council/sutton,London Borough of Sutton,27/09/2019,1284043,1.66 , RYMAN 1176,KB PRISON WRAP,Peoples Services Directorate,Personal Requisites,F106,
http://opendatacommunities.org/id/london-borough-council/sutton,London Borough of Sutton,27/09/2019,1284043,37.80 , PRIMARK,KB PRISON,Peoples Services Directorate,Personal Requisites,F106,
http://opendatacommunities.org/id/london-borough-council/sutton,London Borough of Sutton,17/10/2019,1284043,(54.17), WWW.ARGOS.CO.UK,PART REFUND,Peoples Services Directorate,Personal Requisites,F106,
http://opendatacommunities.org/id/london-borough-council/sutton,London Borough of Sutton,02/10/2019,1284043,545.81 , WWW.ARGOS.CO.UK,HOUSING EQUIPMENT,Peoples Services Directorate,Personal Requisites,F106,
http://opendatacommunities.org/id/london-borough-council/sutton,London Borough of Sutton,25/10/2019,1284043,(25.12), WWW.LABEEBY.CO.UK,30.11 - F106 0304 9999 - LABEEBY.PNG,Peoples Services Directorate,Personal Requisites,F106,
http://opendatacommunities.org/id/london-borough-council/sutton,London Borough of Sutton,10/10/2019,1284043,51.92 , TESCO STORES 5999,51.92 - F106 0340 0132 - TESCO ORDER.PNG,Peoples Services Directorate,Personal Requisites,F106,
http://opendatacommunities.org/id/london-borough-council/sutton,London Borough of Sutton,09/10/2019,1284043,30.10 , WWW.LABEEBY.CO.UK,30.11 - F106 0304 9999 - LABEEBY.PNG,Peoples Services Directorate,Personal Requisites,F106,
http://opendatacommunities.org/id/london-borough-council/sutton,London Borough of Sutton,04/10/2019,1284043,390.00 , PAYPAL  MK SOFAS,390.00 - F106 0304 9999 - EBAY.PNG,Peoples Services Directorate,Personal Requisites,F106,
http://opendatacommunities.org/id/london-borough-council/sutton,London Borough of Sutton,04/10/2019,1284043,238.99 , WOWCHER,238.99 - F106 0304 9999 - WOWCHER.PNG,Peoples Services Directorate,Personal Requisites,F106,
http://opendatacommunities.org/id/london-borough-council/sutton,London Borough of Sutton,09/10/2019,1284043,11.00 , LBSUTTON,11.00 - F106 0304 9999 - SUTTON REGISTER.,Peoples Services Directorate,Personal Requisites,F106,
http://opendatacommunities.org/id/london-borough-council/sutton,London Borough of Sutton,09/10/2019,1284043,11.00 , LBSUTTON,11.00 - F106 0304 9999 - SUTTON REGISTER OFFICE.,Peoples Services Directorate,Personal Requisites,F106,
http://opendatacommunities.org/id/london-borough-council/sutton,London Borough of Sutton,09/10/2019,1284043,22.00 , LBSUTTON,22.00 - F106 0304 9999 - REGISTER OFFICE,Peoples Services Directorate,Personal Requisites,F106,
http://opendatacommunities.org/id/london-borough-council/sutton,London Borough of Sutton,03/10/2019,1284043,22.00 , LBSUTTON,22.00 - F106 0304 9999 - SUTTON BIRTH CERTIFICATES,Peoples Services Directorate,Personal Requisites,F106,
http://opendatacommunities.org/id/london-borough-council/sutton,London Borough of Sutton,01/10/2019,1284043,57.00 , HOTEL ON BOOKING.COM I,ACCOMODATION,Peoples Services Directorate,Accommodation - Bed and Breakfast,H202,
http://opendatacommunities.org/id/london-borough-council/sutton,London Borough of Sutton,07/10/2019,1284043,27.74 , MINICABIT,27.74 - H212 0304 9999 - MINICABIT.PNG,Peoples Services Directorate,C.C.A Travel & Subsistance,H212,
http://opendatacommunities.org/id/london-borough-council/sutton,London Borough of Sutton,04/10/2019,1284043,41.81 , MINICABIT,41.81 - H212 0304 9999 - MINICABIT,Peoples Services Directorate,C.C.A Travel & Subsistance,H212,
http://opendatacommunities.org/id/london-borough-council/sutton,London Borough of Sutton,04/10/2019,1284043,99.70 , MINICABIT,99.70 - H212 0304 9999 - MINICABIT,Peoples Services Directorate,C.C.A Travel & Subsistance,H212,
http://opendatacommunities.org/id/london-borough-council/sutton,London Borough of Sutton,04/10/2019,1284043,79.28 , MINICABIT,79.28 - H212 0304 9999 - ROBBIE DUKE.PNG,Peoples Services Directorate,C.C.A Travel & Subsistance,H212,
http://opendatacommunities.org/id/london-borough-council/sutton,London Borough of Sutton,01/10/2019,1284043,(45.45), MINICABIT,TRAVEL,Peoples Services Directorate,C.C.A Travel & Subsistance,H212,
http://opendatacommunities.org/id/london-borough-council/sutton,London Borough of Sutton,01/10/2019,1284043,(39.54), MINICABIT,TRAVEL,Peoples Services Directorate,C.C.A Travel & Subsistance,H212,
http://opendatacommunities.org/id/london-borough-council/sutton,London Borough of Sutton,30/09/2019,1284043,84.99 , MINICABIT,TRAVEL,Peoples Services Directorate,C.C.A Travel & Subsistance,H212,
http://opendatacommunities.org/id/london-borough-council/sutton,London Borough of Sutton,27/09/2019,1284043,79.28 , MINICABIT,TAXI,Peoples Services Directorate,C.C.A Travel & Subsistance,H212,
http://opendatacommunities.org/id/london-borough-council/sutton,London Borough of Sutton,07/10/2019,1284043,27.74 , MINICABIT,27.74 - H212 0304 9999 - MINICABIT.P,Peoples Services Directorate,C.C.A Travel & Subsistance,H212,
http://opendatacommunities.org/id/london-borough-council/sutton,London Borough of Sutton,23/10/2019,1284043,87.50 , DUNELM LTD,MA SET UP,Peoples Services Directorate,Set Up Costs - Children Leaving Care,H336,
http://opendatacommunities.org/id/london-borough-council/sutton,London Borough of Sutton,15/10/2019,1284043,754.97 , SUTTON APPLIANCES,MA SET UP,Peoples Services Directorate,Set Up Costs - Children Leaving Care,H336,
http://opendatacommunities.org/id/london-borough-council/sutton,London Borough of Sutton,04/10/2019,1284043,154.50 , TVLICENSING.CO.UK,154.50 - H336 0304 9999 - TV LICENSE,Peoples Services Directorate,Set Up Costs - Children Leaving Care,H336,
http://opendatacommunities.org/id/london-borough-council/sutton,London Borough of Sutton,01/10/2019,1284043,369.53 , CARPETRIGHT PLC,SET UP COSTS,Peoples Services Directorate,Set Up Costs - Children Leaving Care,H336,
http://opendatacommunities.org/id/london-borough-council/sutton,London Borough of Sutton,21/10/2019,1284043,28.95 , WWW.ARGOS.CO.UK,LEAVING CARE SET UP COSTS,Peoples Services Directorate,Set Up Costs - Children Leaving Care,H336,
http://opendatacommunities.org/id/london-borough-council/sutton,London Borough of Sutton,17/10/2019,1284043,159.25 , WILKO.COM,LEAVING CARE SET UP COSTS,Peoples Services Directorate,Set Up Costs - Children Leaving Care,H336,
http://opendatacommunities.org/id/london-borough-council/sutton,London Borough of Sutton,17/10/2019,1284043,(39.74), MINICABIT,39.54 - H212 0304 9999 - MINICABIT.PNG,Peoples Services Directorate,C.C.A Travel & Subsistance,H212,
http://opendatacommunities.org/id/london-borough-council/sutton,London Borough of Sutton,07/10/2019,1284043,39.54 , MINICABIT,39.54 - H212 0304 9999 - MINICABIT.PNG,Peoples Services Directorate,C.C.A Travel & Subsistance,H212,
http://opendatacommunities.org/id/london-borough-council/sutton,London Borough of Sutton,18/10/2019,1284043,20.00 , TFL OYST PHOTOCARD,SN OYSTER,Peoples Services Directorate,C.C.A Travel & Subsistance,H212,
http://opendatacommunities.org/id/london-borough-council/sutton,London Borough of Sutton,08/10/2019,1284043,200.00 , PREMIER INN,HOTEL ACCOMMODATION,Peoples Services Directorate,Travelling and Subsistence Allowances,A530,
http://opendatacommunities.org/id/london-borough-council/sutton,London Borough of Sutton,23/10/2019,1284043,20.00 , OYSTER AUTO-TOP UP,20.00 - A530 0310 9999 - OYSTER TOP UP,Peoples Services Directorate,Travelling and Subsistence Allowances,A530,
http://opendatacommunities.org/id/london-borough-council/sutton,London Borough of Sutton,17/10/2019,1284043,20.00 , OYSTER AUTO-TOP UP,20.00 - A530 0310 9999,Peoples Services Directorate,Travelling and Subsistence Allowances,A530,
http://opendatacommunities.org/id/london-borough-council/sutton,London Borough of Sutton,09/10/2019,1284043,20.00 , OYSTER AUTO-TOP UP,20.00 - A530 0310 9999 - OYSTER TOP UP,Peoples Services Directorate,Travelling and Subsistence Allowances,A530,
http://opendatacommunities.org/id/london-borough-council/sutton,London Borough of Sutton,05/10/2019,1284043,20.00 , OYSTER AUTO-TOP UP,20.00 - A530 0310  9999 - OYSTER TOP UP,Peoples Services Directorate,Travelling and Subsistence Allowances,A530,
http://opendatacommunities.org/id/london-borough-council/sutton,London Borough of Sutton,24/10/2019,1284043,41.20 , EMPIRE CINEMAS,CONTACT ACTIVITY,Peoples Services Directorate,Personal Requisites,F106,
http://opendatacommunities.org/id/london-borough-council/sutton,London Borough of Sutton,10/10/2019,1284043,"1,439.70 ", TRAVELODGE,"1,439.70 - H202 0310 9999 - TRAVELODGE BOOKING",Peoples Services Directorate,Accommodation - Bed and Breakfast,H202,
http://opendatacommunities.org/id/london-borough-council/sutton,London Borough of Sutton,24/10/2019,1284043,770.43 , TRAVELODGE,EMERGENCY ACCOMMODATION,Peoples Services Directorate,Accommodation - Bed and Breakfast,H202,
http://opendatacommunities.org/id/london-borough-council/sutton,London Borough of Sutton,17/10/2019,1284043,60.00 , WWW.WIGHTLINK.CO.UK,CARE REVIEW,Peoples Services Directorate,Travelling and Subsistence Allowances,A530,
http://opendatacommunities.org/id/london-borough-council/sutton,London Borough of Sutton,02/10/2019,1284043,48.80 , WWW.WIGHTLINK.CO.UK,48.80 - A530 0311 9999 - WIGHTLINK FOR LAC TEAM.PNG,Peoples Services Directorate,Travelling and Subsistence Allowances,A530,
http://opendatacommunities.org/id/london-borough-council/sutton,London Borough of Sutton,02/10/2019,1284043,24.40 , WWW.WIGHTLINK.CO.UK,TRAVEL,Peoples Services Directorate,Travelling and Subsistence Allowances,A530,
http://opendatacommunities.org/id/london-borough-council/sutton,London Borough of Sutton,19/10/2019,1284043,20.00 , OYSTER AUTO-TOP UP,20.00 AUTO TOP UP - A530 0311 9999 -,Peoples Services Directorate,Travelling and Subsistence Allowances,A530,
http://opendatacommunities.org/id/london-borough-council/sutton,London Borough of Sutton,12/10/2019,1284043,20.00 , OYSTER AUTO-TOP UP,20.00 - A530 0311 9999 - OYSTER AUTO TOP UP,Peoples Services Directorate,Travelling and Subsistence Allowances,A530,
http://opendatacommunities.org/id/london-borough-council/sutton,London Borough of Sutton,11/10/2019,1284043,20.00 , OYSTER AUTO-TOP UP,20.00 - A530 0311 9999 - OYSTER TOP UP,Peoples Services Directorate,Travelling and Subsistence Allowances,A530,
http://opendatacommunities.org/id/london-borough-council/sutton,London Borough of Sutton,08/10/2019,1284043,20.00 , TFL AUTOSETTLEMENT,20.00 - A530 0301 9999 - OYSTER TOP UP,Peoples Services Directorate,Travelling and Subsistence Allowances,A530,
http://opendatacommunities.org/id/london-borough-council/sutton,London Borough of Sutton,27/09/2019,1284043,20.00 , OYSTER AUTO-TOP UP,20.00 AUTO TOP UP - A530 0311 9999,Peoples Services Directorate,Travelling and Subsistence Allowances,A530,
http://opendatacommunities.org/id/london-borough-council/sutton,London Borough of Sutton,25/10/2019,1284043,80.83 , HARLOW LEISUREZONE,LAC ACTIVITY,Peoples Services Directorate,Personal Requisites,F106,
http://opendatacommunities.org/id/london-borough-council/sutton,London Borough of Sutton,23/10/2019,1284043,117.00 , THORPE PARK RESORT FIN,117.00 - F106 0311 9999 - THORPE PARK.PDF,Peoples Services Directorate,Personal Requisites,F106,
http://opendatacommunities.org/id/london-borough-council/sutton,London Borough of Sutton,22/10/2019,1284043,50.55 , AMFBOWLING.CO.UK,50.55 - F106 0311 9999 - HOLLYWOOD BOWL .PNG,Peoples Services Directorate,Personal Requisites,F106,
http://opendatacommunities.org/id/london-borough-council/sutton,London Borough of Sutton,01/10/2019,1284043,85.00 , HM PASSPORT OFFICE,WAITING FOR RECEIPT FROM PASSPORT OFFICE,Peoples Services Directorate,Personal Requisites,F106,
http://opendatacommunities.org/id/london-borough-council/sutton,London Borough of Sutton,24/10/2019,1284043,81.00 , MILE END WALL,CONTACT ACTIVITY,Peoples Services Directorate,Personal Requisites,F106,
http://opendatacommunities.org/id/london-borough-council/sutton,London Borough of Sutton,21/10/2019,1284043,30.20 , WWW.OXYGENFREEJUMP,CONTACT ACTIVITY,Peoples Services Directorate,Personal Requisites,F106,
http://opendatacommunities.org/id/london-borough-council/sutton,London Borough of Sutton,21/10/2019,1284043,23.90 , EMPIRE CINEMAS,CONTACT ACTIVITY,Peoples Services Directorate,Other-Materials,F115,
http://opendatacommunities.org/id/london-borough-council/sutton,London Borough of Sutton,15/10/2019,1284043,65.89 , TRAVELODGE,HOTEL ACCOMMODATION,Peoples Services Directorate,Accommodation - Bed and Breakfast,H202,
http://opendatacommunities.org/id/london-borough-council/sutton,London Borough of Sutton,22/10/2019,1284043,(25.12), WWW.LABEEBY.CO.UK,REFUND ACCOMODATION,Peoples Services Directorate,Accommodation - Bed and Breakfast,H202,
http://opendatacommunities.org/id/london-borough-council/sutton,London Borough of Sutton,06/10/2019,1284043,120.90 , HOLIDAY INNS,ACCONMODATION,Peoples Services Directorate,Accommodation - Bed and Breakfast,H202,
http://opendatacommunities.org/id/london-borough-council/sutton,London Borough of Sutton,06/10/2019,1284043,128.90 , HOLIDAY INNS,ACCOMODATION,Peoples Services Directorate,Accommodation - Bed and Breakfast,H202,
http://opendatacommunities.org/id/london-borough-council/sutton,London Borough of Sutton,22/10/2019,1284043,98.44 , MINICABIT,98.44 - H212 0311 9999 - MINICABIT .PNG,Peoples Services Directorate,C.C.A Travel & Subsistance,H212,
http://opendatacommunities.org/id/london-borough-council/sutton,London Borough of Sutton,01/10/2019,1284043,36.59 , DPD_LOCAL_ONLINE,CLIENT CARE,Peoples Services Directorate,Client Care/Assistance,H301,
http://opendatacommunities.org/id/london-borough-council/sutton,London Borough of Sutton,26/10/2019,1284043,20.00 , OYSTER AUTO-TOP UP,20.00 - A530 0312 9999 OYSTER TOP,Peoples Services Directorate,Travelling and Subsistence Allowances,A530,
http://opendatacommunities.org/id/london-borough-council/sutton,London Borough of Sutton,22/10/2019,1284043,20.00 , OYSTER AUTO-TOP UP,20.00 AUTOP TOP UP - A530 0312 9999,Peoples Services Directorate,Travelling and Subsistence Allowances,A530,
http://opendatacommunities.org/id/london-borough-council/sutton,London Borough of Sutton,17/10/2019,1284043,20.00 , OYSTER AUTO-TOP UP,20.00 AUTO TOP UP - A530 0312 9999 -,Peoples Services Directorate,Travelling and Subsistence Allowances,A530,
http://opendatacommunities.org/id/london-borough-council/sutton,London Borough of Sutton,17/10/2019,1284043,20.00 , OYSTER AUTO-TOP UP,20.00 AUTOP TOP UP - A530 0312 9999 - 2,Peoples Services Directorate,Travelling and Subsistence Allowances,A530,
http://opendatacommunities.org/id/london-borough-council/sutton,London Borough of Sutton,13/10/2019,1284043,20.00 , OYSTER AUTO-TOP UP,20.00 AUTO TOP UP - A530 0312 9999 - OYSTER 12,Peoples Services Directorate,Travelling and Subsistence Allowances,A530,
http://opendatacommunities.org/id/london-borough-council/sutton,London Borough of Sutton,11/10/2019,1284043,20.00 , OYSTER AUTO-TOP UP,20.00 - A530 0312 9999 - OYSTER TOP UP 1,Peoples Services Directorate,Travelling and Subsistence Allowances,A530,
http://opendatacommunities.org/id/london-borough-council/sutton,London Borough of Sutton,09/10/2019,1284043,37.42 , MINICABIT,37.42 - A530 0312 9999 - MINI CAB IT.,Peoples Services Directorate,Travelling and Subsistence Allowances,A530,
http://opendatacommunities.org/id/london-borough-council/sutton,London Borough of Sutton,05/10/2019,1284043,20.00 , OYSTER AUTO-TOP UP,20.00 - A530 0312 9999 - OYSTER TOP UP,Peoples Services Directorate,Travelling and Subsistence Allowances,A530,
http://opendatacommunities.org/id/london-borough-council/sutton,London Borough of Sutton,03/10/2019,1284043,20.00 , OYSTER AUTO-TOP UP,20.00 - A530 0312 9999 OYSTER TOP UP,Peoples Services Directorate,Travelling and Subsistence Allowances,A530,
http://opendatacommunities.org/id/london-borough-council/sutton,London Borough of Sutton,29/09/2019,1284043,20.00 , OYSTER AUTO-TOP UP,20.00 AUTO TOP UP - A530 0312 9999,Peoples Services Directorate,Travelling and Subsistence Allowances,A530,
http://opendatacommunities.org/id/london-borough-council/sutton,London Borough of Sutton,15/10/2019,1284043,33.00 , LBSUTTON,BIRTH CERTIFICATES,Peoples Services Directorate,Personal Requisites,F106,
http://opendatacommunities.org/id/london-borough-council/sutton,London Borough of Sutton,01/10/2019,1284043,254.00 , HM PASSPORT,PERSONAL REQUISITES,Peoples Services Directorate,Personal Requisites,F106,
http://opendatacommunities.org/id/london-borough-council/sutton,London Borough of Sutton,21/10/2019,1284043,22.00 , LBSUTTON,BIRTH CERTIFICATE,Peoples Services Directorate,Personal Requisites,F106,
http://opendatacommunities.org/id/london-borough-council/sutton,London Borough of Sutton,22/10/2019,1284043,110.00 , THE WAVERLEY HOTEL BAN,110.00 - H202 0312 9999 - THE WAVERLEY HOTEL .PNG,Peoples Services Directorate,Accommodation - Bed and Breakfast,H202,
http://opendatacommunities.org/id/london-borough-council/sutton,London Borough of Sutton,11/10/2019,1284043,63.24 , TRAVELODGE,63.24 - H202 0312 9999 - TRAVELODGE - INGA MAZONAITE.PDF,Peoples Services Directorate,Accommodation - Bed and Breakfast,H202,
http://opendatacommunities.org/id/london-borough-council/sutton,London Borough of Sutton,02/10/2019,1284043,603.48 , TRAVELODGE,603.48 - H202 0312 9999 - TRAVELODGE MORDEN.PNG,Peoples Services Directorate,Accommodation - Bed and Breakfast,H202,
http://opendatacommunities.org/id/london-borough-council/sutton,London Borough of Sutton,14/10/2019,1284043,98.49 , TRAVELODGE,TRAVELODGE,Peoples Services Directorate,Accommodation - Bed and Breakfast,H202,
http://opendatacommunities.org/id/london-borough-council/sutton,London Borough of Sutton,09/10/2019,1284043,266.33 , TRAVELODGE,TRAVELODGE MORDEN,Peoples Services Directorate,Accommodation - Bed and Breakfast,H202,
http://opendatacommunities.org/id/london-borough-council/sutton,London Borough of Sutton,08/10/2019,1284043,37.37 , MINICABIT,37.37 - H212 0312 9999 - TRANSPORT FOR COURT,Peoples Services Directorate,C.C.A Travel & Subsistance,H212,
http://opendatacommunities.org/id/london-borough-council/sutton,London Borough of Sutton,07/10/2019,1284043,35.75 , MINICABIT,35.75 - H212 0312 9999 - MINICABIT.,Peoples Services Directorate,C.C.A Travel & Subsistance,H212,
http://opendatacommunities.org/id/london-borough-council/sutton,London Borough of Sutton,03/10/2019,1284043,330.76 , TRAVELODGE,ACCOMMODATION,Peoples Services Directorate,Accommodation - Bed and Breakfast,H202,
http://opendatacommunities.org/id/london-borough-council/sutton,London Borough of Sutton,26/09/2019,1284043,675.45 , TRAVELODGE,LONDON MORDEN TRAVELODGE,Peoples Services Directorate,C.C.A Rent & Utilities,H211,
http://opendatacommunities.org/id/london-borough-council/sutton,London Borough of Sutton,11/10/2019,1284043,20.00 , OYSTER AUTO-TOP UP,20.00 - A530 0318 9999 - OYSTER TOP UP,Peoples Services Directorate,Travelling and Subsistence Allowances,A530,
http://opendatacommunities.org/id/london-borough-council/sutton,London Borough of Sutton,23/10/2019,1284043,51.62 , MINICABIT,51.62 - E072 0318 9999 - MINICABIT.PNG,Peoples Services Directorate,Hired Peoples Transport (Children),E072,
http://opendatacommunities.org/id/london-borough-council/sutton,London Borough of Sutton,09/10/2019,1284043,107.32 , EB  AUTISM LEARNS UNDE,107.32 - A520 0320 9999 - EVENTBRITE TICKET.PNG,Peoples Services Directorate,Training - Course Fees,A520,
http://opendatacommunities.org/id/london-borough-council/sutton,London Borough of Sutton,20/10/2019,1284043,20.00 , OYSTER AUTO-TOP UP,20.00 - A530 0321 9999 -,Peoples Services Directorate,Travelling and Subsistence Allowances,A530,
http://opendatacommunities.org/id/london-borough-council/sutton,London Borough of Sutton,12/10/2019,1284043,20.00 , OYSTER AUTO-TOP UP,20.00 AUTO TOP UP - A530 0321 9999 - OYSTER 8,Peoples Services Directorate,Travelling and Subsistence Allowances,A530,
http://opendatacommunities.org/id/london-borough-council/sutton,London Borough of Sutton,01/10/2019,1284043,(40.00), ARGOS RETAIL GROUP,203.93 - F001 0340 9999 - ARGOS.PNG,Peoples Services Directorate,Administrative Equipment,F001,
http://opendatacommunities.org/id/london-borough-council/sutton,London Borough of Sutton,23/10/2019,1284043,20.65 , OYSTER ONLINE,20.65 - A530 0359 9999 - OYSTER CARD .PNG,Peoples Services Directorate,Travelling and Subsistence Allowances,A530,
http://opendatacommunities.org/id/london-borough-council/sutton,London Borough of Sutton,25/10/2019,1284043,20.00 , OYSTER AUTO-TOP UP,20.00 AUTO TOP UP -A530 0359 9999,Peoples Services Directorate,Travelling and Subsistence Allowances,A530,
http://opendatacommunities.org/id/london-borough-council/sutton,London Borough of Sutton,24/10/2019,1284043,20.00 , OYSTER AUTO-TOP UP,20.00 AUTO TOP UP -A530 0359 9999,Peoples Services Directorate,Travelling and Subsistence Allowances,A530,
http://opendatacommunities.org/id/london-borough-council/sutton,London Borough of Sutton,20/10/2019,1284043,20.00 , OYSTER AUTO-TOP UP,20.00 - A530 0359 9999 - OYSTER TOP UP 1,Peoples Services Directorate,Travelling and Subsistence Allowances,A530,
http://opendatacommunities.org/id/london-borough-council/sutton,London Borough of Sutton,19/10/2019,1284043,20.00 , OYSTER AUTO-TOP UP,20.00 AUTO TOP UP - A530 0359 9999 -,Peoples Services Directorate,Travelling and Subsistence Allowances,A530,
http://opendatacommunities.org/id/london-borough-council/sutton,London Borough of Sutton,06/10/2019,1284043,20.00 , OYSTER AUTO-TOP UP,20.00 - A530 0359  9999 - OYSTER TOP UP,Peoples Services Directorate,Travelling and Subsistence Allowances,A530,
http://opendatacommunities.org/id/london-borough-council/sutton,London Borough of Sutton,02/10/2019,1284043,20.00 , OYSTER AUTO-TOP UP,20.00 AUTO TOP UP -A530 0359 9999,Peoples Services Directorate,Travelling and Subsistence Allowances,A530,
http://opendatacommunities.org/id/london-borough-council/sutton,London Borough of Sutton,26/09/2019,1284043,20.00 , OYSTER AUTO-TOP UP,20.00 AUTO TOP UP - A530 0359 9999,Peoples Services Directorate,Travelling and Subsistence Allowances,A530,
http://opendatacommunities.org/id/london-borough-council/sutton,London Borough of Sutton,25/09/2019,1284043,20.00 , OYSTER AUTO-TOP UP,20.00 AUTO TOP UP - A530 0359 99999,Peoples Services Directorate,Travelling and Subsistence Allowances,A530,
http://opendatacommunities.org/id/london-borough-council/sutton,London Borough of Sutton,24/10/2019,1284043,4.16 , ASDA STORES,FOOD FOR UNITE GROUP FOR EVENT ON,Chief Executive's Directorate,LAC - Education,F269,
http://opendatacommunities.org/id/london-borough-council/sutton,London Borough of Sutton,21/10/2019,1284043,50.00 , EB  POWER THE FIGHT CO,COURSE FEES,Chief Executive's Directorate,Training - Course Fees,A520,
http://opendatacommunities.org/id/london-borough-council/sutton,London Borough of Sutton,24/10/2019,1284043,16.67 , OYSTER AUTO-TOP UP,TRAVEL,Peoples Services Directorate,Travelling and Subsistence Allowances,A530,
http://opendatacommunities.org/id/london-borough-council/sutton,London Borough of Sutton,25/10/2019,1284043,20.00 , OYSTER AUTO-TOP UP,20.00 AUTO TOP UP - A530 0383 9999,Peoples Services Directorate,Travelling and Subsistence Allowances,A530,
http://opendatacommunities.org/id/london-borough-council/sutton,London Borough of Sutton,17/10/2019,1284043,20.00 , OYSTER AUTO-TOP UP,20.00 AUTO TOP UP - A530 0383 9999,Peoples Services Directorate,Travelling and Subsistence Allowances,A530,
http://opendatacommunities.org/id/london-borough-council/sutton,London Borough of Sutton,11/10/2019,1284043,20.00 , OYSTER AUTO-TOP UP,20.00 - A530 0383 9999 - OYSTER TOP UP,Peoples Services Directorate,Travelling and Subsistence Allowances,A530,
http://opendatacommunities.org/id/london-borough-council/sutton,London Borough of Sutton,29/09/2019,1284043,20.00 , OYSTER AUTO-TOP UP,20.00 AUTO TOP UP - A530 0383 9999 -,Peoples Services Directorate,Travelling and Subsistence Allowances,A530,
http://opendatacommunities.org/id/london-borough-council/sutton,London Borough of Sutton,24/10/2019,1284043,48.57 , MINICABIT,TRANSPORT FOR CHILD,Peoples Services Directorate,Personal Requisites,F106,
http://opendatacommunities.org/id/london-borough-council/sutton,London Borough of Sutton,04/10/2019,1284043,47.19 , TRAVELODGE,47.19 - H202 0383 9999 - TRAVELODGE BOOKING.PNG,Peoples Services Directorate,Accommodation - Bed and Breakfast,H202,
http://opendatacommunities.org/id/london-borough-council/sutton,London Borough of Sutton,22/10/2019,1284043,26.98 , MINICABIT,26.98 - H212 0383 9999 - MINICABIT FOR GREEN LOCALITY .PNG,Peoples Services Directorate,C.C.A Travel & Subsistance,H212,
http://opendatacommunities.org/id/london-borough-council/sutton,London Borough of Sutton,28/09/2019,1284043,20.00 , OYSTER AUTO-TOP UP,20.00 AUTO TOP UP - A530 0383 9999,Peoples Services Directorate,Travelling and Subsistence Allowances,A530,
http://opendatacommunities.org/id/london-borough-council/sutton,London Borough of Sutton,03/10/2019,1284043,114.48 , TRAVELODGE,TRAVELODGE PORTHMADOG,Peoples Services Directorate,Accommodation - Bed and Breakfast,H202,
http://opendatacommunities.org/id/london-borough-council/sutton,London Borough of Sutton,11/10/2019,1284043,101.49 , TRAVELODGE,101.49 - H212 0384 9999 - TRAVELODGE BANGOR .PNG,Peoples Services Directorate,C.C.A Travel & Subsistance,H212,
http://opendatacommunities.org/id/london-borough-council/sutton,London Borough of Sutton,24/10/2019,1284043,9.99 , AMAZON.CO.UK MO9E01QI4,SPLIT - SANDISK ULTRA SDXC MEMORY CARD,Peoples Services Directorate,LAC - Education,F269,
http://opendatacommunities.org/id/london-borough-council/sutton,London Borough of Sutton,24/10/2019,1284043,240.83 , AMAZON.CO.UK MO9E01QI4,SPLIT - CANON EOS 4000D DSLR CAMERA,Peoples Services Directorate,LAC - Education,F269,
http://opendatacommunities.org/id/london-borough-council/sutton,London Borough of Sutton,24/10/2019,1284043,21.66 , AMAZON.CO.UK MO9E01QI4,SPLIT - CANON ES100 BAG FOR CAMERA - BLACK (7.83%),Peoples Services Directorate,LAC - Education,F269,
http://opendatacommunities.org/id/london-borough-council/sutton,London Borough of Sutton,24/10/2019,1284043,4.15 , AMAZON.CO.UK MO9E01QI4,BALANCING ENTRY AMOUNT (1.5%),Peoples Services Directorate,LAC - Education,F269,
http://opendatacommunities.org/id/london-borough-council/sutton,London Borough of Sutton,24/10/2019,1284043,(1.67), AMZ AMAZON.CO.UK,SPLIT - CANON EOS 4000D DSLR CAMERA AND EF-S 18-55 MM F/3.5-5.6 III LENS - BLACK (100%),Peoples Services Directorate,LAC - Education,F269,
http://opendatacommunities.org/id/london-borough-council/sutton,London Borough of Sutton,24/10/2019,1284043,(1.66), AMZ AMAZON BUSINESS UK,SPLIT - CANON ES100 BAG FOR CAMERA - BLACK (50%),Peoples Services Directorate,LAC - Education,F269,
http://opendatacommunities.org/id/london-borough-council/sutton,London Borough of Sutton,24/10/2019,1284043,(1.66), AMZ AMAZON BUSINESS UK,"SPLIT - SANDISK ULTRA SDXC MEMORY CARD UP TO 80 MB/S, CLASS 10, U1, 64 GB, BLACK/GREY (50%)",Peoples Services Directorate,LAC - Education,F269,
http://opendatacommunities.org/id/london-borough-council/sutton,London Borough of Sutton,17/10/2019,1284043,23.65 , AMAZON.CO.UK MO9ML5X74,SPLIT - THE CITY & GUILDS TEXTBOOK LEVEL 2 DIPLOMA FOR HAIR PROFESSIONALS,Peoples Services Directorate,LAC - Education,F269,
http://opendatacommunities.org/id/london-borough-council/sutton,London Borough of Sutton,17/10/2019,1284043,7.26 , AMAZON.CO.UK MO9ML5X74,SPLIT - NEW FUNCTIONAL SKILLS MATHS: EDEXCEL LEVEL 2 - STUDY & TEST PRACTICE,Peoples Services Directorate,LAC - Education,F269,
http://opendatacommunities.org/id/london-borough-council/sutton,London Borough of Sutton,10/10/2019,1284043,254.63 , WWW.NESCOT.AU.UK,HAIRDRESSING KIT FOR NESCOT COURSE POST 16 CLA,Peoples Services Directorate,LAC - Education,F269,
http://opendatacommunities.org/id/london-borough-council/sutton,London Borough of Sutton,10/10/2019,1284043,4.99 , AMAZON.CO.UK MO92L3T74,SPLIT - HANDWRITING TODAY: BK. 1 (HANDWRITING TODAY) (26.76%),Peoples Services Directorate,LAC - Education,F269,
http://opendatacommunities.org/id/london-borough-council/sutton,London Borough of Sutton,10/10/2019,1284043,7.19 , AMAZON.CO.UK MO92L3T74,SPLIT - OXFORD ESSENTIAL ARABIC DICTIONARY: ENGLISH-ARABIC/ARABIC-ENGLISH (38.55%),Peoples Services Directorate,LAC - Education,F269,
http://opendatacommunities.org/id/london-borough-council/sutton,London Borough of Sutton,10/10/2019,1284043,5.99 , AMAZON.CO.UK MO92L3T74,SPLIT - ARABIC-ENGLISH BILINGUAL VISUAL DICTIONARY (DK BILINGUAL VISUAL DICTIONARY) (32.12%),Peoples Services Directorate,LAC - Education,F269,
http://opendatacommunities.org/id/london-borough-council/sutton,London Borough of Sutton,07/10/2019,1284043,21.47 , AMAZON.CO.UK MO4MC9TC4,SPLIT - AQA GCSE (9-1) CHEMISTRY STUDENT BOOK (49.6%),Peoples Services Directorate,LAC - Education,F269,
http://opendatacommunities.org/id/london-borough-council/sutton,London Borough of Sutton,07/10/2019,1284043,21.82 , AMAZON.CO.UK MO4MC9TC4,SPLIT - AQA GCSE (9-1) PHYSICS STUDENT BOOK (50.4%),Peoples Services Directorate,LAC - Education,F269,
http://opendatacommunities.org/id/london-borough-council/sutton,London Borough of Sutton,06/10/2019,1284043,3.61 , AMAZON.CO.UK MO30R4ZK4,SPLIT - OXFORD HELIX MATHS SET WITH STORAGE TIN (13.96%),Peoples Services Directorate,LAC - Education,F269,
http://opendatacommunities.org/id/london-borough-council/sutton,London Borough of Sutton,06/10/2019,1284043,7.09 , AMAZON.CO.UK MO30R4ZK4,SPLIT - NEW FUNCTIONAL SKILLS ENGLISH LEVEL 2 - STUDY & TEST PRACTICE (FOR 2019 & BEYOND) (27.42%),Peoples Services Directorate,LAC - Education,F269,
http://opendatacommunities.org/id/london-borough-council/sutton,London Borough of Sutton,06/10/2019,1284043,9.39 , AMAZON.CO.UK MO30R4ZK4,SPLIT - NEW GCSE MATHS EDEXCEL COMPLETE REVISION & PRACTICE: FOUNDATION - (36.31%),Peoples Services Directorate,LAC - Education,F269,
http://opendatacommunities.org/id/london-borough-council/sutton,London Borough of Sutton,06/10/2019,1284043,5.77 , AMAZON.CO.UK MO30R4ZK4,SPLIT - GCSE MATHS EDEXCEL EXAM PRACTICE WORKBOOK: FOUNDATION (22.31%),Peoples Services Directorate,LAC - Education,F269,
http://opendatacommunities.org/id/london-borough-council/sutton,London Borough of Sutton,26/09/2019,1284043,4.99 , AMAZON.CO.UK MA5AS0WA4,SPLIT - HANDWRITING TODAY: BK. 2 (HANDWRITING TODAY) (21.75%),Peoples Services Directorate,LAC - Education,F269,
http://opendatacommunities.org/id/london-borough-council/sutton,London Borough of Sutton,26/09/2019,1284043,8.99 , AMAZON.CO.UK MA5AS0WA4,SPLIT - GCSE MATHS EDEXCEL COMPLETE REVISION & PRACTICE: HIGHER - GRADE 9-1 COURSE (39.19%),Peoples Services Directorate,LAC - Education,F269,
http://opendatacommunities.org/id/london-borough-council/sutton,London Borough of Sutton,26/09/2019,1284043,3.97 , AMAZON.CO.UK MA5AS0WA4,SPLIT - TIMES TABLES WORKBOOK AGES 7-11: NEW EDITION (COLLINS EASY LEARNING KS2) (17.31%),Peoples Services Directorate,LAC - Education,F269,
http://opendatacommunities.org/id/london-borough-council/sutton,London Borough of Sutton,26/09/2019,1284043,4.99 , AMAZON.CO.UK MA5AS0WA4,SPLIT - HANDWRITING TODAY: BK. 1 (HANDWRITING TODAY) (21.75%),Peoples Services Directorate,LAC - Education,F269,
http://opendatacommunities.org/id/london-borough-council/sutton,London Borough of Sutton,26/09/2019,1284043,57.00 , MARKALLENGROUP.COM/MA-,TES SEND CONFERENCE TICKETS FOR SEMINARS,Peoples Services Directorate,LAC - Education,F269,
http://opendatacommunities.org/id/london-borough-council/sutton,London Borough of Sutton,27/10/2019,1284043,9.64 , AMAZON.CO.UK MO3U23D94,SPLIT - MAKE-UP TECHNIQUES (TRY IT!) (57.28%),Peoples Services Directorate,LAC - Education,F269,
http://opendatacommunities.org/id/london-borough-council/sutton,London Borough of Sutton,27/10/2019,1284043,7.19 , AMAZON.CO.UK MO3U23D94,"SPLIT - BEAUTY HACKS: MAKE-UP CHEATS, SKINCARE TRICKS AND STYLING TIPS (LIFE HACKS) (42.72%)",Peoples Services Directorate,LAC - Education,F269,
http://opendatacommunities.org/id/london-borough-council/sutton,London Borough of Sutton,25/09/2019,1284043,20.00 , OYSTER AUTO-TOP UP,OYSTERCARD TOP UP,"Environment, Housing & Regeneration Directorate",General Office Expenses,F235,
http://opendatacommunities.org/id/london-borough-council/sutton,London Borough of Sutton,16/10/2019,1284043,170.88 , HILTON,SOLACE SUMMIT ACCOMMODATION FOR MARY MORRISSEY,"Environment, Housing & Regeneration Directorate",Travelling and Subsistence Allowances,A530,
http://opendatacommunities.org/id/london-borough-council/sutton,London Borough of Sutton,23/10/2019,1284043,34.96 , AMZNMKTPLACE,MOUSE AND IPAD LEADS FOR MARY M,"Environment, Housing & Regeneration Directorate",General Office Expenses,F235,
http://opendatacommunities.org/id/london-borough-council/sutton,London Borough of Sutton,18/10/2019,1284043,21.00 , HILTON,SOLACE SUMMIT ACCOMMODATION,"Environment, Housing & Regeneration Directorate",General Office Expenses,F235,
http://opendatacommunities.org/id/london-borough-council/sutton,London Borough of Sutton,20/10/2019,1284043,20.00 , OYSTER AUTO-TOP UP,OYSTERCARD TOP UP,"Environment, Housing & Regeneration Directorate",General Office Expenses,F235,
http://opendatacommunities.org/id/london-borough-council/sutton,London Borough of Sutton,18/10/2019,1284043,21.00 , HILTON,SOLACE SUMMIT ACCOMMODATION,"Environment, Housing & Regeneration Directorate",Advertising/Publicity (non Staff),F240,
http://opendatacommunities.org/id/london-borough-council/sutton,London Borough of Sutton,22/10/2019,1284043,439.16 , AMAZON.CO.UK MO3GG6844,HEATERS FOR POLICE STATION/PARKING OFFICE,"Environment, Housing & Regeneration Directorate",Other Equipment - Purchase,F015,
http://opendatacommunities.org/id/london-borough-council/sutton,London Borough of Sutton,23/10/2019,1284043,129.20 , AMZNMKTPLACE AMAZON.CO,"DVDS, COVERS FOR BB EVIDENCE AND MOTOROLA CHARGER","Environment, Housing & Regeneration Directorate",Purchase of IT Equipment,F380,
http://opendatacommunities.org/id/london-borough-council/sutton,London Borough of Sutton,25/10/2019,1284043,131.79 , MARKS&SPENCER PLC,FOOD FOR FOSTERING EVENT,Resources Directorate,Hospitality (VAT not Recoverable),F325,
http://opendatacommunities.org/id/london-borough-council/sutton,London Borough of Sutton,07/10/2019,1284043,91.67 , PIGGIES,LUNCH FOR CONFERENCE THAT HAS BEEN RECHARGE TO CORRECT DEPARTMENT,Resources Directorate,Hospitality (VAT not Recoverable),F325,
http://opendatacommunities.org/id/london-borough-council/sutton,London Borough of Sutton,07/10/2019,1284043,8.75 , WAITROSE 559,LUNCH FOR CONFERENCE THAT HAS BEEN RECHARGE TO CORRECT DEPARTMENT,Resources Directorate,Hospitality (VAT not Recoverable),F325,
http://opendatacommunities.org/id/london-borough-council/sutton,London Borough of Sutton,28/09/2019,1284043,46.12 , SAINSBURYS SACAT 0038,FOOD FOR CHARITY EVENT,Resources Directorate,Hospitality (VAT not Recoverable),F325,
http://opendatacommunities.org/id/london-borough-council/sutton,London Borough of Sutton,26/09/2019,1284043,57.17 , ASDA STORES,FOOD FOR CHARITY EVENT,Resources Directorate,Hospitality (VAT not Recoverable),F325,
http://opendatacommunities.org/id/london-borough-council/sutton,London Borough of Sutton,25/09/2019,1284043,8.92 , WM MORRISONS STORE,EXTRA JAMS FOR CHARITY EVENT,Resources Directorate,Hospitality (VAT not Recoverable),F325,
http://opendatacommunities.org/id/london-borough-council/sutton,London Borough of Sutton,22/10/2019,1284043,4.83 , TESCO STORE 3235,DISHWASHER TABLETS,Resources Directorate,Miscellaneous Expenses,F620,
http://opendatacommunities.org/id/london-borough-council/sutton,London Borough of Sutton,16/10/2019,1284043,3.24 , AMZNMKTPLACE,CARBON MONOXIDE DETECTOR FOR REGISTER OFFICE,Resources Directorate,Miscellaneous Expenses,F620,
http://opendatacommunities.org/id/london-borough-council/sutton,London Borough of Sutton,27/10/2019,1284043,6.67 , ICELAND,BISCUITS FOR CITIZENSHIP,Resources Directorate,Miscellaneous Expenses,F620,
http://opendatacommunities.org/id/london-borough-council/sutton,London Borough of Sutton,14/10/2019,1284043,34.62 , FLORAL IMAGE SUSSEX,FLOWERS FOR CEREMONY ROOM,Resources Directorate,Miscellaneous Expenses,F620,
http://opendatacommunities.org/id/london-borough-council/sutton,London Borough of Sutton,14/10/2019,1284043,13.87 , HTTP://WWW.PRIMATEL.CO,TILL ROLLS FOR CHIP & PIN,Resources Directorate,Miscellaneous Expenses,F620,
http://opendatacommunities.org/id/london-borough-council/sutton,London Borough of Sutton,03/10/2019,1284043,8.32 , SPOTIFY UK,MUSIC FOR WEDDINGS,Resources Directorate,Miscellaneous Expenses,F620,
http://opendatacommunities.org/id/london-borough-council/sutton,London Borough of Sutton,09/10/2019,1284043,20.00 , OYSTER AUTO-TOP UP,OYSTERCARD TOP UP,"Environment, Housing & Regeneration Directorate",General Office Expenses,F235,
http://opendatacommunities.org/id/london-borough-council/sutton,London Borough of Sutton,10/10/2019,1284043,20.00 , OYSTER AUTO-TOP UP,OYSTERCARD TOP UP,HRA,General Office Expenses,F235,
http://opendatacommunities.org/id/london-borough-council/sutton,London Borough of Sutton,09/10/2019,1284043,20.00 , OYSTER AUTO-TOP UP,OYSTERCARD TOP UP,HRA,General Office Expenses,F235,
http://opendatacommunities.org/id/london-borough-council/sutton,London Borough of Sutton,11/10/2019,1284043,20.00 , OYSTER AUTO-TOP UP,OYSTERCARD TOP UP,"Environment, Housing & Regeneration Directorate",General Office Expenses,F235,
http://opendatacommunities.org/id/london-borough-council/sutton,London Borough of Sutton,09/10/2019,1284043,5.83 , DAWSONS,KEY CUTTING FOR PSL SCHEME,"Environment, Housing & Regeneration Directorate",Other Services,F340,
http://opendatacommunities.org/id/london-borough-council/sutton,London Borough of Sutton,09/10/2019,1284043,14.17 , TESCO STORES 5374,KEY CUTTING FOR PSL SCHEME,"Environment, Housing & Regeneration Directorate",Other Services,F340,
http://opendatacommunities.org/id/london-borough-council/sutton,London Borough of Sutton,10/10/2019,1284043,41.46 , TRAINLINE.COM,TRAIN TICKETS TO ATTEND SOLACE SUMMIT BETWEEN 16-18 OCTOBER 2019,Chief Executive's Directorate,Travelling and Subsistence Allowances,A530,
http://opendatacommunities.org/id/london-borough-council/sutton,London Borough of Sutton,16/10/2019,1284043,170.88 , HILTON,SOLACE SUMMIT ACCOMMODATION,Chief Executive's Directorate,Travelling and Subsistence Allowances,A530,
http://opendatacommunities.org/id/london-borough-council/sutton,London Borough of Sutton,16/10/2019,1284043,170.88 , HILTON,SOLACE SUMMIT ACCOMMODATION,Chief Executive's Directorate,Travelling and Subsistence Allowances,A530,
http://opendatacommunities.org/id/london-borough-council/sutton,London Borough of Sutton,24/10/2019,1284043,25.00 , OYSTER ONLINE,TEAM OYSTER,Chief Executive's Directorate,Travelling and Subsistence Allowances,A530,
http://opendatacommunities.org/id/london-borough-council/sutton,London Borough of Sutton,24/10/2019,1284043,40.00 , TFL AUTOSETTLEMENT,TEAM OYSTER,Chief Executive's Directorate,Travelling and Subsistence Allowances,A530,
http://opendatacommunities.org/id/london-borough-council/sutton,London Borough of Sutton,24/10/2019,1284043,4.20 , TFL TRAVEL CH,TEAM OYSTER,Chief Executive's Directorate,Travelling and Subsistence Allowances,A530,
http://opendatacommunities.org/id/london-borough-council/sutton,London Borough of Sutton,06/10/2019,1284043,20.00 , OYSTER AUTO-TOP UP,TEAM OYSTER,Chief Executive's Directorate,Travelling and Subsistence Allowances,A530,
http://opendatacommunities.org/id/london-borough-council/sutton,London Borough of Sutton,05/10/2019,1284043,20.00 , OYSTER AUTO-TOP UP,TEAM OYSTER,Chief Executive's Directorate,Travelling and Subsistence Allowances,A530,
http://opendatacommunities.org/id/london-borough-council/sutton,London Borough of Sutton,23/10/2019,1284043,(85.44), HILTON,REFUND FOR HOTEL,Chief Executive's Directorate,General Office Expenses,F235,
http://opendatacommunities.org/id/london-borough-council/sutton,London Borough of Sutton,15/10/2019,1284043,5.03 , MAILCHIMP    MONTHLY,WEB HOSTING FEES,Chief Executive's Directorate,Fees - Computer Software,F384,
http://opendatacommunities.org/id/london-borough-council/sutton,London Borough of Sutton,14/10/2019,1284043,182.90 , MAILCHIMP    MONTHLY,WEB HOSTING,Chief Executive's Directorate,Fees - Computer Software,F384,
http://opendatacommunities.org/id/london-borough-council/sutton,London Borough of Sutton,25/10/2019,1284043,1.53 , LUCIDCHART.COM/CHARGE,LUCID CHARTS EXCHANGE FEE,Resources Directorate,Purchase of IT Equipment,F380,
http://opendatacommunities.org/id/london-borough-council/sutton,London Borough of Sutton,24/10/2019,1284043,55.65 , LUCIDCHART.COM/CHARGE,ANNUAL SCRIPTION FOR COMMITTEE SERVICE TO LUCID CHARTS,Resources Directorate,Purchase of IT Equipment,F380,
http://opendatacommunities.org/id/london-borough-council/sutton,London Borough of Sutton,01/10/2019,1284043,"2,000.00 ", WM MORRISONS HO CREDIT,PERSONAL REQUISITES,Resources Directorate,Personal Requisites,F106,
http://opendatacommunities.org/id/london-borough-council/sutton,London Borough of Sutton,08/10/2019,1284043,200.00 , WM MORRISONS STORE,200.00 - F620 4114 9999 - MORRISONS VOUCHERS.PDF,Resources Directorate,Miscellaneous Expenses,F620,
http://opendatacommunities.org/id/london-borough-council/sutton,London Borough of Sutton,04/10/2019,1284043,200.00 , GOOGLE  ADS8517410550,BALANCING ENTRY AMOUNT (100%),Chief Executive's Directorate,Advertising/Publicity (non Staff),F240,
http://opendatacommunities.org/id/london-borough-council/sutton,London Borough of Sutton,11/10/2019,1284043,3.32 , AMAZON MUSIC MO93870U4,"MISTAKENLY TAKEN FROM AMAZON ACCOUNT, REFUND IN PROCESS.",Chief Executive's Directorate,General Office Expenses,F235,
http://opendatacommunities.org/id/london-borough-council/sutton,London Borough of Sutton,17/10/2019,1284043,20.00 , OYSTER AUTO-TOP UP,AUTOMATIC OYSTER CARD TOP UP CLLR.,Resources Directorate,Members Expenses - Travel and Subsistence,F401,
http://opendatacommunities.org/id/london-borough-council/sutton,London Borough of Sutton,18/10/2019,1284043,208.80 , VIRGIN TRAINS,TRAVEL TO MANCHESTER FOR A CONFERENCE,Chief Executive's Directorate,Staff Travelling Expenses,E130,
http://opendatacommunities.org/id/london-borough-council/sutton,London Borough of Sutton,18/10/2019,1284043,148.55 , VIRGIN TRAINS,TRAVEL EXPENSES FOR CONFERENCE IN MANCHESTER,Chief Executive's Directorate,Staff Travelling Expenses,E130,
http://opendatacommunities.org/id/london-borough-council/sutton,London Borough of Sutton,18/10/2019,1284043,582.40 , VIRGIN TRAINS,TRAVEL COSTS FOR A CONFERENCE IN MANCHESTER FOR TEAM,Chief Executive's Directorate,Staff Travelling Expenses,E130,
http://opendatacommunities.org/id/london-borough-council/sutton,London Borough of Sutton,25/10/2019,1284043,304.50 , VIRGIN TRAINS,TRAVEL TO MANCHESTER FOR CONFERENCE,Chief Executive's Directorate,Staff Travelling Expenses,E130,
http://opendatacommunities.org/id/london-borough-council/sutton,London Borough of Sutton,25/10/2019,1284043,300.00 , VIRGIN TRAINS,TRAVEL TO MANCHESTER FOR CONFERENCE,Chief Executive's Directorate,Staff Travelling Expenses,E130,
http://opendatacommunities.org/id/london-borough-council/sutton,London Borough of Sutton,26/09/2019,1284043,38.17 , AMZNMKTPLACE AMAZON.CO,WRIST BANDS FOR CELEBRATING SUCCESS EVENT,Chief Executive's Directorate,Other Equipment - Purchase,F015,
http://opendatacommunities.org/id/london-borough-council/sutton,London Borough of Sutton,09/10/2019,1284043,8.00 , WH SMITH,CHOCOLATES FOR RAFFLE PRIZE AT COMMUNITY AWARDS,Chief Executive's Directorate,Other-Materials,F115,
http://opendatacommunities.org/id/london-borough-council/sutton,London Borough of Sutton,09/10/2019,1284043,22.92 , PARTY SUPERSTORES,GOODS FOR COMMUNITY AWARDS - BALLOONS,Chief Executive's Directorate,Other-Materials,F115,
http://opendatacommunities.org/id/london-borough-council/sutton,London Borough of Sutton,09/10/2019,1284043,80.00 , FIRST FLOWERS DIRECT L,FLOWERS FOR THE COMMUNITY AWARD,Chief Executive's Directorate,Other-Materials,F115,
http://opendatacommunities.org/id/london-borough-council/sutton,London Borough of Sutton,04/10/2019,1284043,40.60 , ABC HIRE,GAZEBO HIRE RE ST HELIER FESTIVAL,Chief Executive's Directorate,Corporate Publicity,F356,
http://opendatacommunities.org/id/london-borough-council/sutton,London Borough of Sutton,30/09/2019,1284043,56.94 , FACEBK 5LK67NS3V2,COMMUNITY AWARD FACEBOOK ADVERTISING,Chief Executive's Directorate,Corporate Publicity,F356,
http://opendatacommunities.org/id/london-borough-council/sutton,London Borough of Sutton,30/09/2019,1284043,164.04 , CHALLENGETROPHIES CO U,COMMUNITY AWARD TROPHIES,Chief Executive's Directorate,Corporate Publicity,F356,
http://opendatacommunities.org/id/london-borough-council/sutton,London Borough of Sutton,26/09/2019,1284043,33.33 , OYSTER AUTO-TOP UP,OYSTER TOP UP FOR BENEFITS STAFF TRAVEL,Resources Directorate,Training - Travel and Subsistence,A521,
http://opendatacommunities.org/id/london-borough-council/sutton,London Borough of Sutton,18/10/2019,1284043,349.98 , WWW.ARGOS.CO.UK,CL&G,Resources Directorate,Grants,F473,
http://opendatacommunities.org/id/london-borough-council/sutton,London Borough of Sutton,18/10/2019,1284043,102.95 , WWW.ARGOS.CO.UK,CL&G,Resources Directorate,Grants,F473,
http://opendatacommunities.org/id/london-borough-council/sutton,London Borough of Sutton,16/10/2019,1284043,134.98 , WWW.ARGOS.CO.UK,CL&G,Resources Directorate,Grants,F473,
http://opendatacommunities.org/id/london-borough-council/sutton,London Borough of Sutton,16/10/2019,1284043,155.95 , WWW.ARGOS.CO.UK,CL&G,Resources Directorate,Grants,F473,
http://opendatacommunities.org/id/london-borough-council/sutton,London Borough of Sutton,16/10/2019,1284043,(86.04), WWW.ARGOS.CO.UK,CL&G,Resources Directorate,Grants,F473,
http://opendatacommunities.org/id/london-borough-council/sutton,London Borough of Sutton,16/10/2019,1284043,(44.99), WWW.ARGOS.CO.UK,CL&G,Resources Directorate,Grants,F473,
http://opendatacommunities.org/id/london-borough-council/sutton,London Borough of Sutton,16/10/2019,1284043,155.95 , WWW.ARGOS.CO.UK,CL&G,Resources Directorate,Grants,F473,
http://opendatacommunities.org/id/london-borough-council/sutton,London Borough of Sutton,16/10/2019,1284043,134.98 , WWW.ARGOS.CO.UK,CL&G,Resources Directorate,Grants,F473,
http://opendatacommunities.org/id/london-borough-council/sutton,London Borough of Sutton,16/10/2019,1284043,(155.95), WWW.ARGOS.CO.UK,CL&G,Resources Directorate,Grants,F473,
http://opendatacommunities.org/id/london-borough-council/sutton,London Borough of Sutton,07/10/2019,1284043,615.93 , WWW.ARGOS.CO.UK,CLG CREDIT,Resources Directorate,Grants,F473,
http://opendatacommunities.org/id/london-borough-council/sutton,London Borough of Sutton,07/10/2019,1284043,184.98 , WWW.ARGOS.CO.UK,CL&G,Resources Directorate,Grants,F473,
http://opendatacommunities.org/id/london-borough-council/sutton,London Borough of Sutton,25/09/2019,1284043,304.95 , WWW.ARGOS.CO.UK,CL&G,Resources Directorate,Grants,F473,
http://opendatacommunities.org/id/london-borough-council/sutton,London Borough of Sutton,10/10/2019,1284043,102.95 , WWW.ARGOS.CO.UK,CL&G PURCHASE,Resources Directorate,Grants,F473,
http://opendatacommunities.org/id/london-borough-council/sutton,London Borough of Sutton,08/10/2019,1284043,179.99 , WWW.ARGOS.CO.UK,CL&G PURCHASE,Resources Directorate,Grants,F473,
http://opendatacommunities.org/id/london-borough-council/sutton,London Borough of Sutton,22/10/2019,1284043,565.93 , WWW.ARGOS.CO.UK,"PURCHASE OF ELECTRIC COOKER, FRIDGE FREEZER & SINGLE DIVAN FOR CRISIS LOAN",Resources Directorate,Grants,F473,
http://opendatacommunities.org/id/london-borough-council/sutton,London Borough of Sutton,08/10/2019,1284043,(6.95), WWW.ARGOS.CO.UK,CL&G CREDIT - DELIVERY,Resources Directorate,Grants,F473,
http://opendatacommunities.org/id/london-borough-council/sutton,London Borough of Sutton,26/09/2019,1284043,33.33 , OYSTER AUTO-TOP UP,OYSTER TOP UP FOR REVENUES STAFF TRAVEL,Resources Directorate,Training - Travel and Subsistence,A521,
http://opendatacommunities.org/id/london-borough-council/sutton,London Borough of Sutton,02/10/2019,1284043,36.00 , WWW.GOV.UK,24 X PROBATE CERTIFICATES,Resources Directorate,General Office Expenses,F235,
http://opendatacommunities.org/id/london-borough-council/sutton,London Borough of Sutton,20/10/2019,1284043,20.00 , OYSTER AUTO-TOP UP,20.00 AUTO TOP UP - A530 6404 9999 - OYSTER,Peoples Services Directorate,Travelling and Subsistence Allowances,A530,
http://opendatacommunities.org/id/london-borough-council/sutton,London Borough of Sutton,17/10/2019,1284043,20.00 , OYSTER AUTO-TOP UP,20.00 AUTO TOP UP - A530 6404 9999 -,Peoples Services Directorate,Travelling and Subsistence Allowances,A530,
http://opendatacommunities.org/id/london-borough-council/sutton,London Borough of Sutton,13/10/2019,1284043,20.00 , OYSTER AUTO-TOP UP,20.00 AUTO TOP UP - A530 6404 9999 - OYSTER,Peoples Services Directorate,Travelling and Subsistence Allowances,A530,
http://opendatacommunities.org/id/london-borough-council/sutton,London Borough of Sutton,11/10/2019,1284043,20.00 , OYSTER AUTO-TOP UP,20.00 AUTO TOP UP - A530 6404 9999,Peoples Services Directorate,Travelling and Subsistence Allowances,A530,
http://opendatacommunities.org/id/london-borough-council/sutton,London Borough of Sutton,08/10/2019,1284043,20.00 , OYSTER AUTO-TOP UP,20.00 - A530 6404 9999 - OYSTER TOP UP,Peoples Services Directorate,Travelling and Subsistence Allowances,A530,
http://opendatacommunities.org/id/london-borough-council/sutton,London Borough of Sutton,09/10/2019,1284043,76.74 , POSTURITE LTD,76.74 - F001 6452 9999 - PROSTURITE .PNG,Peoples Services Directorate,Administrative Equipment,F001,
http://opendatacommunities.org/id/london-borough-council/sutton,London Borough of Sutton,16/10/2019,1284043,40.00 , OYSTER AUTO-TOP UP,OYSTER TOP UP,Peoples Services Directorate,Travelling and Subsistence Allowances,A530,
http://opendatacommunities.org/id/london-borough-council/sutton,London Borough of Sutton,15/10/2019,1284043,330.48 , WWW.ETCVENUES.CO.UK,AWAY DAY,Peoples Services Directorate,Fees - Room Hire,F290,
